Cogmind - Beta 12 @@@ ROGUE MODE // 2023.10.19 @ 10:01:27 Player: Fleshy Vegetable Bird Result: Destroyed by G-34 Mercenary with Small Laser Performance ------------- Evolutions (0) 0 Regions Visited (4) 800 Robots Destroyed (22) 110 Value Destroyed (458) 458 Prototype IDs (0) 0 Alien Tech Used (0) 0 Bonus (52) 52 TOTAL SCORE: 1420 Bonus ------- Follower Combat Kills 52 Cogmind --------- Core Integrity 0/250 Matter 300/300 Energy 125/125 System Corruption 0% Temperature Cool (6) Movement Rolling (95) Ox1 Location -9/Mines Parts ------- > --- POWER (1) -------- Light Ion Engine > --- PROPULSION (2) --- Wheel Wheel > --- UTILITY (2) ------ Large Storage Unit Improved Terrain Scanner > --- WEAPON (2) ------- Small Laser > --- INVENTORY (15) --- Nuclear Core Nuclear Core Light Nuclear Core Reinforced Deuterium Engine Large Storage Unit Huge Storage Unit Particle Gun Grenade Launcher Mining Laser Peak State ------------ > --- POWER ------------ Light Ion Engine > --- PROPULSION ------- Wheel Wheel > --- UTILITY ---------- Small Storage Unit Improved Terrain Scanner > --- WEAPON ----------- Assault Rifle Light Assault Rifle > --- INVENTORY -------- Light Ion Engine Wheel Wheel Compact Wheel Compact Wheel Light Assault Rifle Mining Laser [Rating: 9] Favorites ----------- Power Light Ion Engine Engine Light Ion Engine Propulsion Wheel Wheel Wheel Utility Small Storage Unit Device Improved Terrain Scanner Storage Small Storage Unit Weapon Light Assault Rifle Energy Gun Small Laser Ballistic Gun Light Assault Rifle Build | -11 -10 -10 -10 -9 ------- Run | Jun Mat Min Exi Min Slots Evolved . | . . . . . Power . | . . . . . Propulsion . | . . . . . Utility . | . . . . . Weapon . | . . . . . Parts Attached 17 | 7 . 6 3 1 Power 2 | 1 . 1 . . Engine 2 | 1 . 1 . . Core . | . . . . . Reactor . | . . . . . Propulsion 6 | 2 . 3 1 . Treads . | . . . . . Leg . | . . . . . Wheel 6 | 2 . 3 1 . Hover . | . . . . . Flight . | . . . . . Utility 5 | 2 . . 2 1 Device 2 | 1 . . . 1 Storage 3 | 1 . . 2 . Processor . | . . . . . Hackware . | . . . . . Protection . | . . . . . Artifact . | . . . . . Weapon 4 | 2 . 2 . . Energy Gun 1 | . . 1 . . Energy Cannon . | . . . . . Ballistic Gun 3 | 2 . 1 . . Ballistic Cannon . | . . . . . Launcher . | . . . . . Special Weapon . | . . . . . Impact Weapon . | . . . . . Slashing Weapon . | . . . . . Piercing Weapon . | . . . . . Special Melee Weapon . | . . . . . Unidentified Prototypes . | . . . . . Parts Lost 8 | . . 8 . . Power 1 | . . 1 . . Propulsion 3 | . . 3 . . Utility 1 | . . 1 . . Weapon 3 | . . 3 . . Highest Loss Streak 4 | . . 4 . . To Critical Strikes . | . . . . . Average Slot Usage (%) 76 | . 100 74 68 72 Engine 13 | . 14 13 14 14 Wheel 24 | . 28 21 25 28 Device 2 | . 14 . . 1 Storage 14 | . 14 14 14 14 Energy Gun 6 | . . 2 14 14 Ballistic Gun 14 | . 28 22 . . Naked Turns . | . . . . . Heaviest Build 25 | 12 12 10 24 25 Greatest Support 20 | 20 20 20 20 20 Greatest Overweight (x) 1 | . . . 1 1 Average Overweight (x) . | . . . . 1 Largest Inventory Capacity 15 | 8 8 8 15 15 Average Capacity 9 | 7 8 8 10 15 Most Carried 10 | 8 8 8 8 10 Average Carried 6 | 4 7 5 7 8 Final Capacity 15 | 8 8 8 15 15 Final Carried 9 | 7 8 6 8 9 Class Distribution -------------------- 96% | Mutant 3% | Scavenger-Mutant Dominant Class ---------------- Mutant | -10/Materials Mutant | -10/Mines Mutant | -10/Exiles Mutant | -9/Mines Resources | -11 -10 -10 -10 -9 ----------- Run | Jun Mat Min Exi Min Matter Collected 592 | 369 57 126 . 40 Remotely . | . . . . . Salvage Created 664 | 141 116 397 . 10 Parts 47 | 12 7 24 . 4 Haulers Intercepted . | . . . . . Recyclers Shooed . | . . . . . Parts Field Recycled . | . . . . . Retrieved Matter . | . . . . . Parts Self-Destructed . | . . . . . Prevented . | . . . . . Kills | -11 -10 -10 -10 -9 ------- Run | Jun Mat Min Exi Min Combat Hostiles Destroyed 15 | . 3 12 . . Guns 15 | . 3 12 . . Classes Destroyed 6 | 3 1 2 . . Worker 1 | 1 . . . . Builder 1 | . . 1 . . Tunneler 4 | 3 . . . 1 Recycler 1 | 1 . . . . Swarmer 6 | . . 6 . . Grunt 9 | . 3 6 . . Best Kill Streak 3 | 3 2 3 . 1 Combat Bots Only 3 | . 2 3 . . Max Kills in Single Turn 1 | 1 1 1 . 1 Gunslinging . | . . . . . Exploded . | . . . . . Melee . | . . . . . Uniques/NPCs Destroyed . | . . . . . Combat | -11 -10 -10 -10 -9 -------- Run | Jun Mat Min Exi Min Damage Taken 837 | . 186 640 . 11 Core 259 | . 80 168 . 11 Absorbed by Shields . | . . . . . Core Remaining (%) 100 | 100 . . . . Volleys Fired 101 | 29 19 45 . 8 Largest 2 | 2 2 2 . 1 Hottest 60 | 40 40 60 . 40 Shots Fired 171 | 41 38 84 . 8 Gun 171 | 41 38 84 . 8 Cannon . | . . . . . Launcher . | . . . . . Special . | . . . . . Kinetic 158 | 41 38 79 . . Thermal 13 | . . 5 . 8 Explosive . | . . . . . Electromagnetic . | . . . . . Robot Hit Streak 14 | 5 14 11 . 1 Robot Miss Streak 4 | 4 1 3 . 4 Penetration Max . | . . . . . Secondary Targets 2 | . . 2 . . Max Gunslinging Chain 1 | . . 1 . . Shots Hit Robots 108 | 21 31 54 . 2 Core Hits 47 | 7 9 30 . 1 Critical Kills . | . . . . . Critical Parts Destroyed 2 | . . 2 . . Critical Strikes 2 | . . 2 . . Destroy 2 | . . 2 . . Melee Attacks . | . . . . . Impact . | . . . . . Slashing . | . . . . . Piercing . | . . . . . Sneak Attacks . | . . . . . Combat Hostiles . | . . . . . Follow-up Attacks . | . . . . . Damage Inflicted 1048 | 249 318 458 . 23 Guns 1042 | 249 312 458 . 23 Cannons . | . . . . . Explosions . | . . . . . Melee . | . . . . . Ramming 6 | . 6 . . . Kinetic 964 | 249 312 403 . . Thermal 78 | . . 55 . 23 Explosive . | . . . . . Electromagnetic . | . . . . . Impact . | . . . . . Slashing . | . . . . . Piercing . | . . . . . Highest Corruption . | . . . . . Average Corruption . | . . . . . Corruption Purged . | . . . . . Corruption Blocked . | . . . . . Overload Shots . | . . . . . Overflow Damage . | . . . . . Projectiles . | . . . . . Explosions . | . . . . . Melee . | . . . . . Knockbacks . | . . . . . Impact . | . . . . . Kinetic . | . . . . . Secondary . | . . . . . Self-Inflicted Damage 3 | . 3 . . . Shots . | . . . . . Rammed 1 | . 1 . . . Targets Rammed 1 | . 1 . . . Kicked . | . . . . . Crushed . | . . . . . Highest Temperature 36 | . 12 36 . . Average Temperature 15 | . 7 17 . . Received Heat Transfer 432 | . 96 330 . 6 Siege Activations . | . . . . . Robots Corrupted . | . . . . . Combat Hostiles . | . . . . . Parts Fried . | . . . . . Impact Corruptions . | . . . . . Robots Melted . | . . . . . Combat Hostiles . | . . . . . Parts Melted . | . . . . . Heat Transferred 175 | . . 125 . 50 Parts Sabotaged . | . . . . . Parts Stolen . | . . . . . Parts Stripped . | . . . . . Power Chain Reactions . | . . . . . Missiles Intercepted . | . . . . . Alert | -11 -10 -10 -10 -9 ------- Run | Jun Mat Min Exi Min Peak Influence 245 | 25 101 245 . 61 Initial 39 | . 16 39 . . Average 68 | 11 55 106 . 19 Maximum Alert Level 1 | . . 1 . . Low Security (%) 86 | 100 100 74 . 100 Level 1 13 | . . 25 . . Level 2 . | . . . . . Level 3 . | . . . . . Level 4 . | . . . . . Level 5 . | . . . . . High Security . | . . . . . Max Security . | . . . . . Squads Dispatched 3 | . 2 . . 1 Investigation 1 | . . . . 1 Extermination . | . . . . . Reinforcement 2 | . 2 . . . Assault . | . . . . . Garrison . | . . . . . Intercept . | . . . . . Searches Triggered . | . . . . . Construction Impeded . | . . . . . Haulers Reinforced . | . . . . . Active Scanning Responses . | . . . . . Cargo Convoy Interrupts . | . . . . . Stealth | -11 -10 -10 -10 -9 --------- Run | Jun Mat Min Exi Min Distress Signals . | . . . . . Communications Jammed . | . . . . . Distress Signals . | . . . . . Times Spotted 22 | . 6 14 . 2 Peak Tracking Total 3 | . 2 3 . 1 Tactical Retreats 1 | . . 1 . . Traps | -11 -10 -10 -10 -9 ------- Run | Jun Mat Min Exi Min Traps Triggered . | . . . . . Indirectly . | . . . . . Trap Hack Attempts . | . . . . . Triggered . | . . . . . Disarmed . | . . . . . Reprogrammed . | . . . . . Reused . | . . . . . Traps Extracted . | . . . . . Installed . | . . . . . Triggered . | . . . . . Machines | -11 -10 -10 -10 -9 ---------- Run | Jun Mat Min Exi Min Machines Disabled . | . . . . . Max in Single Turn . | . . . . . Machines Repaired . | . . . . . Machines Sabotaged . | . . . . . Overloaded Fab Kills . | . . . . . Hacking | -11 -10 -10 -10 -9 --------- Run | Jun Mat Min Exi Min Machines Accessed 2 | . . . 1 1 Terminals . | . . . . . Fabricators . | . . . . . Repair Stations . | . . . . . Recycling Units . | . . . . . Scanalyzers . | . . . . . Garrison Access . | . . . . . Total Hacks 24 | . . . 23 1 Successful 24 | . . . 23 1 Failed . | . . . . . Catastrophic . | . . . . . Database Lockouts . | . . . . . Manual . | . . . . . Terminals . | . . . . . Fabricators . | . . . . . Repair Stations . | . . . . . Recycling Units . | . . . . . Scanalyzers . | . . . . . Garrison Access . | . . . . . Terminal Hacks 24 | . . . 23 1 Record 23 | . . . 23 . Open Door 1 | . . . . 1 Fabricator Hacks . | . . . . . Repair Station Hacks . | . . . . . Recycling Unit Hacks . | . . . . . Scanalyzer . | . . . . . Garrison Access Hacks . | . . . . . Unauthorized Hacks . | . . . . . Terminals . | . . . . . Fabricators . | . . . . . Repair Stations . | . . . . . Recycling Units . | . . . . . Scanalyzers . | . . . . . Garrison Access . | . . . . . Data Cores Recovered . | . . . . . Used . | . . . . . Hacking Detections . | . . . . . Full Trace Events . | . . . . . Feedback Events . | . . . . . Feedback Blocked . | . . . . . Robot Schematics Acquired . | . . . . . Robots Built . | . . . . . Authchips . | . . . . . Time . | . . . . . Total Robot Build Rating . | . . . . . Part Schematics Acquired . | . . . . . Parts Built . | . . . . . Authchips . | . . . . . Time . | . . . . . Total Part Build Rating . | . . . . . Parts Repaired . | . . . . . Time . | . . . . . Parts Recycled . | . . . . . Recycled Matter . | . . . . . Retrieved Matter . | . . . . . Retrieved Components . | . . . . . Parts Scanalyzed . | . . . . . Part Schematics Acquired . | . . . . . Parts Damaged . | . . . . . Bothacking | -11 -10 -10 -10 -9 ------------ Run | Jun Mat Min Exi Min Used RIF Installer . | . . . . . Robots Hacked . | . . . . . Non-combat . | . . . . . Combat . | . . . . . Robot Hacks Applied . | . . . . . Relay Couplers Released . | . . . . . Fabnet Peak Effective % . | . . . . . Robots Rewired . | . . . . . Allies Hacked . | . . . . . Hacks Repelled . | . . . . . Allies | -11 -10 -10 -10 -9 -------- Run | Jun Mat Min Exi Min Total Allies 3 | . . . . 3 Largest Group 3 | . . . . 3 Highest-Rated Group 40 | . . . . 40 Highest-Rated Ally 16 | . . . . 16 Total Orders . | . . . . . Ally Attacks 14 | . . . . 14 Total Damage 148 | . . . . 148 Kills 2 | . . . . 2 Allies Corrupted . | . . . . . Allies Melted . | . . . . . Intel | -11 -10 -10 -10 -9 ------- Run | Jun Mat Min Exi Min Robot Analysis Total . | . . . . . Derelict Logs Recovered 2 | . . 1 . 1 Drone Launches . | . . . . . Drone Recoveries . | . . . . . Exploration | -11 -10 -10 -10 -9 ------------- Run | Jun Mat Min Exi Min Turns Passed 1633 | 150 155 781 146 401 Spaces Moved 1300 | 76 69 644 162 349 Core 8 | 8 . . . . Treads . | . . . . . Legs . | . . . . . Wheels 1292 | 68 69 644 162 349 Hover . | . . . . . Flight . | . . . . . Fastest Speed 50 | 50 80 80 80 95 Average Speed 84 | 76 80 80 83 95 Slowest Speed 95 | 80 80 80 95 95 Overloaded Moves . | . . . . . Propulsion Burnouts . | . . . . . Robots Hopped . | . . . . . Cave-ins Triggered . | . . . . . Exploration Rate (%) 47 | 5 18 85 49 82 Regions Visited 4 Branch Regions 3 Pre-discovered Areas 1 | . . . 1 . Known Exits Taken . | . . . . . Unknown Exits Taken 4 | 1 1 1 1 . Scrap Searched 2 | . . . . 2 Spaces Dug . | . . . . . Terrain Destroyed . | . . . . . Melee . | . . . . . Projectile . | . . . . . AOE . | . . . . . Terrain Rammed . | . . . . . Walls Destroyed . | . . . . . Machines Disabled . | . . . . . Actions | -11 -10 -10 -10 -9 --------- Run | Jun Mat Min Exi Min Total 1686 | 128 134 841 173 410 Wait 240 | 3 45 142 . 50 Move 1296 | 75 68 643 161 349 Hop . | . . . . . Pick Up 27 | 14 1 4 6 2 Fast Attach . | . . . . . Attach 17 | 7 . 6 3 1 Detach . | . . . . . Swap . | . . . . . Drop 4 | . . 1 3 . Fire 101 | 29 19 45 . 8 Melee . | . . . . . Ram 1 | . 1 . . . Kick . | . . . . . Crush . | . . . . . Escape Stasis . | . . . . . Rewire . | . . . . . Trap . | . . . . . Miscellaneous . | . . . . . Route ------- -11/Junkyard -10/Materials -10/Mines (discovered 3 exits: [*Mat x2] / *Exi) -10/Exiles -9/Mines (discovered 2 exits: [*Mat x2]) History --------- Turn | Location | Event 27 | -11/Junkyard | Discovered new exit (range 13) 151 | -11/Junkyard | Entered Materials 292 | -10/Materials | Discovered new exit (range 15) 306 | -10/Materials | Entered Mines 309 | -10/Mines | Build established: Mutant 361 | -10/Mines | Lost 4 parts (1p1n1u1w) 380 | -10/Mines | Deemed a non-threat by the Exiles lab entrance 381 | -10/Mines | Discovered new exit (range 5) 464 | -10/Mines | Discovered new exit (range 5) 652 | -10/Mines | Learned Materials security intel 784 | -10/Mines | Core integrity fell below 50% 925 | -10/Mines | Core integrity fell below 20% 967 | -10/Mines | Lost 3 parts (1n2w) 1015 | -10/Mines | Discovered new exit (range 9) 1087 | -10/Mines | Entered Exiles 1118 | -10/Exiles | Met 8R-AWN 1132 | -10/Exiles | Met EX-HEX 1162 | -10/Exiles | Met EX-DEC 1167 | -10/Exiles | Learned location of Zion (-6) 1221 | -10/Exiles | Discovered new exit (range 12) 1233 | -10/Exiles | Entered Mines 1285 | -9/Mines | Assisted by bots powering up and referring to "LRC-V3" 1574 | -9/Mines | YI-UF0 nonchalantly dropped a Grenade Launcher on the ground 1578 | -9/Mines | Learned Materials garrison access intel 1624 | -9/Mines | Discovered new exit (range 6) 1627 | -9/Mines | Discovered new exit (range 8) 1632 | -9/Mines | Met a Derelict shopkeep closing up shop 1634 | -9/Mines | Destroyed by G-34 Mercenary with Small Laser Last Messages --------------- 01558_ Found Med. Battery. 01558_ Found 34 Matter. 01574_ YI-UF0 nonchalantly drops a Grenade Launcher on the ground. 01575_ Acquired Grenade Launcher. 01578_ Acquired derelict log, extracted data. Data stored: Materials garrison access intel. 01584_ T-07 Excavator destroyed. 01584_ R-06 Scavenger collects Wheel. 01587_ R-06 Scavenger collects Lgt. Ion Engine. 01589_ Acquired Imp. Terrain Scanner. 01592_ Acquired 10 matter. 01624_ EXIT=FOUND 01631_ Connecting with SHOP.Sys... 01631_ Current location identified: Mines >>Open Door Sealed Doors opened. 01632_ LW-YBM(g): "Sorry, the Unaware have moved into these parts and I'm closing up shop. No more sales from me!" 01634_ ALERT: Derelict activity detected in mines. Dispatching investigation squad. Map ----- +----------------------------------------------------+ | ???# ## ##??????????#!#????? | | ???# ???????# #???????????# #????? | | ???????? ???????# #??????#????# ###### | | ????????????????# ###?????????# | | ?????#?????????## ##????????######## | | ??????????????## #????????????#??? | | ??????????#????# #??????????#????? | | ???????????????## #???????????????? | | ?????????????#??## #????????###????? | | ?????????????????# #???????# ##???? | | ????????????????## #??????# #???? | | ????????????##### #?????#= #???? | | ???????????## ! ##?### =#????? | | ??????????## ##! #??????? | | ???????????# ! #???????? | | ???????????# ## ###???###?? | | ???????????#### #### ##????## ## | | ??????????????# #??## #??#### # | | ?????????#????# #???# #?## | | ??????????????# #??## ! ##?# | | ??????##???#### ##?# ##??# | | ??????#"[### #?# #???## | | ??????#?!g/# #?## ##????##### | | ??????#"]# ##?## #?????????## | | ????????[ #??# #??????????## | | ???????????#X@g #??# #???????????## | | ??????????## #### #???????????## | | ??????????# g #???????????# | | ??????????###### ######???????????# | | ???????????????# #????????????????# | | ???????????????# #????????????????## | | ??????????????? ?????????????????## | | ??????????????## ?????????????????# | | ???#???????????###